fUSD/lending_fUSD_20250715
["ID","MTS","AMOUNT","RATE_DAILY","PERIOD"]
[372142227,1752537714565,226.20361591,0.00030137,120]
[372142229,1752537918788,154.26,0.00013699,2]
[372142240,1752538089167,-165.96,0.0001943,2]
[372142241,1752538094507,-4.66023366,0.0001943,2]
[372142242,1752538094531,-151.0,0.000195,2]
[372142243,1752538122150,-152.33976634,0.00019529,2]
[372142244,1752538133577,250.0,0.00015,2]
[372142245,1752538144068,-152.0,0.00019529,2]
[372142249,1752538147917,885.36331743,0.0003013,120]
[372142250,1752538150146,-195.66023366,0.00019529,2]
[372142251,1752538150171,-264.33976634,0.00019529,2]
[372142252,1752538158759,-235.66023366,0.00019529,2]
[372142253,1752538158782,-179.15388727,0.00019529,2]
[372142254,1752538158812,-45.18587907,0.00019529,2]
[372142255,1752538160945,-256.3084402,0.00019529,2]
[372142262,1752538164997,-198.50568073,0.00019529,2]
[372142263,1752538165022,-45.07387244,0.00019529,2]
[372142264,1752538166686,-309.45841841,0.00019529,2]
[372142265,1752538166710,-1089.22205221,0.00019533,2]
[372142266,1752538173714,-170.62023366,0.00019429,2]
[372142267,1752538173737,-169.65769603,0.00019533,2]
[372142268,1752538176821,-162.04658592,0.00019533,2]
[372142269,1752538182785,-2225.31861806,0.00019533,2]
[372142270,1752538184376,-151.0,0.00019533,2]
[372142271,1752538191172,-582.88699734,0.00019533,2]
[372142272,1752538193493,-180.0,0.00019533,2]
[372142274,1752538198174,-251.92449064,0.00019533,2]
[372142275,1752538207210,-500.10030215,0.00019532,2]
[372142276,1752538214187,-178.42838798,0.00019523,2]
[372142277,1752538216217,-153.43621444,0.00019523,2]
[372142278,1752538217934,-176.0,0.00019532,2]
[372142279,1752538222782,-259.02473289,0.00019532,2]
[372142280,1752538229848,-431.98729137,0.00019532,2]
[372142287,1752538231743,-568.01270863,0.00019532,2]
[372142288,1752538231753,-264.87496496,0.00019532,2]
[372142289,1752538231762,-3411.44134107,0.00019533,2]
[372142291,1752538231774,-5759.90291839,0.00019533,2]
[372142292,1752538231860,-371.2224,0.00019533,2]
[372142293,1752538231871,-545.43903023,0.00019533,2]
[372142294,1752538231883,-1145.01646657,0.00019533,2]
[372142295,1752538231894,-1220.34552231,0.00019533,2]
[372142302,1752538232564,-314.57281937,0.00019533,2]
[372142306,1752538238559,-1232.35921334,0.00019533,2]
[372142307,1752538238573,-1965.30427423,0.00019533,2]
[372142308,1752538238585,-1765.79648198,0.00019533,2]
[372142309,1752538238726,-271195.69804979,0.00019533,2]
[372142310,1752538238736,-250.0,0.00020242,2]
[372142311,1752538238746,-1000.0,0.00020242,3]
[372142312,1752538238757,-502.0,0.00020742,2]
[372142313,1752538238767,-229.44999031,0.000209,4]
[372142314,1752538238776,-154.26,0.00020951,2]
[372142315,1752538238785,-229.44999013,0.00021072,4]
[372142316,1752538238794,-1000.0,0.00021138,3]
[372142317,1752538238804,-229.44999013,0.00021245,4]
[372142318,1752538238813,-1680.0,0.00021381,2]
[372142319,1752538238824,-229.44999013,0.00021417,5]
[372142320,1752538238835,-250.0,0.00021486,2]
[372142321,1752538238845,-1000.0,0.00021486,3]
[372142322,1752538238855,-229.44999013,0.0002159,5]
[372142323,1752538238864,-433.55,0.00021714,7]
[372142324,1752538238875,-600.0,0.00021739,7]
[372142325,1752538238884,-538.53,0.00021739,7]
[372142326,1752538238894,-203.47,0.0002174,7]
[372142327,1752538238904,-600.0,0.00021749,7]
[372142328,1752538238915,-600.0,0.00021749,7]
[372142329,1752538238924,-600.0,0.00021749,7]
[372142330,1752538238936,-394.56,0.00021749,7]
[372142331,1752538238946,-229.44999013,0.00021762,5]
[372142332,1752538238956,-152.83,0.00021841,7]
[372142333,1752538238965,-229.44999013,0.00021934,6]
[372142334,1752538238975,-889.78,0.00022004,2]
[372142335,1752538238985,-452.35235727,0.00022007,2]
[372142336,1752538238994,-229.44999013,0.00022107,6]
[372142337,1752538239004,-502.0,0.00022144,4]
[372142338,1752538239014,-229.44999013,0.00022279,6]
[372142340,1752538239024,-452.3523572,0.00022335,2]
[372142342,1752538239033,-229.44999013,0.00022452,7]
[372142343,1752538239042,-200.0,0.00022521,2]
[372142344,1752538239052,-23900.0,0.0002253,2]
[372142345,1752538239062,-299.0,0.00022592,2]
[372142346,1752538239071,-314.03,0.00022594,2]
[372142347,1752538239081,-229.44999013,0.00022624,7]
[372142348,1752538239091,-150.0,0.0002266,2]
[372142349,1752538239100,-1000.0,0.00022678,2]
[372142350,1752538239110,-177.9,0.00022708,2]
[372142351,1752538239119,-1219.0,0.00022727,2]
[372142352,1752538239129,-165.66,0.00022741,2]
[372142353,1752538239140,-229.44999013,0.00022797,7]
[372142354,1752538239150,-193.42,0.00022827,2]
[372142355,1752538239160,-250.0,0.00022881,2]
[372142356,1752538239169,-189.08,0.0002292,2]
[372142357,1752538239178,-229.44999013,0.00022969,8]
[372142358,1752538239187,-168.06,0.00022974,2]
[372142359,1752538239196,-229.44999013,0.00023141,8]
[372142360,1752538239206,-500.0,0.000233,8]
[372142361,1752538239215,-1100.0,0.000233,8]
[372142362,1752538239225,-1100.0,0.000233,8]
[372142363,1752538239235,-229.44999013,0.00023314,9]
[372142364,1752538239244,-1000.0,0.000234,8]
[372142365,1752538239254,-2200.0,0.000234,8]
[372142366,1752538239263,-2300.0,0.000234,8]
[372142367,1752538239273,-2351.0,0.00023405,2]
[372142368,1752538239283,-229.44999013,0.00023486,9]
[372142369,1752538239293,-4031.856,0.00023488,2]
[372142370,1752538239303,-207.4,0.00023488,2]
[372142371,1752538239313,-1500.0,0.000235,8]
[372142372,1752538239322,-3400.0,0.000235,8]
[372142373,1752538239333,-3500.0,0.000235,8]
[372142374,1752538239345,-4181.034672,0.00023543,2]
[372142375,1752538239356,-502.0,0.00023546,6]
[372142376,1752538239366,-500.0,0.00023562,2]
[372142377,1752538239377,-4335.73295486,0.00023598,2]
[372142378,1752538239388,-2000.0,0.000236,8]
[372142379,1752538239398,-4500.0,0.000236,8]
[372142380,1752538239409,-4700.0,0.000236,8]
[372142381,1752538239419,-167.08,0.00023621,2]
[372142382,1752538239428,-4496.15507419,0.00023653,2]
[372142383,1752538239438,-229.44999013,0.00023659,9]
[372142384,1752538239448,-2600.0,0.000237,8]
[372142385,1752538239458,-5600.0,0.000237,8]
[372142386,1752538239467,-5900.0,0.000237,8]
[372142387,1752538239477,-3542.19925271,0.00023708,2]
[372142388,1752538239487,-189.08,0.00023779,2]
[372142389,1752538239496,-163.55338061,0.00023792,2]
[372142390,1752538239504,-2092.462,0.00023792,2]
[372142391,1752538239514,-229.318,0.00023792,2]
[372142392,1752538239524,-6775.8827,0.00023792,2]
[372142393,1752538239534,-500.0,0.000238,8]
[372142395,1752538239551,-1100.0,0.000238,8]
[372142397,1752538239561,-1100.0,0.000238,8]
[372142398,1752538239571,-164.52,0.00023814,2]
[372142399,1752538239580,-229.44999013,0.00023831,10]
[372142400,1752538239590,-3389.9,0.00023834,2]
[372142401,1752538239601,-513.9323549,0.00023834,2]
[372142402,1752538239612,-166.17,0.00023836,2]
[372142403,1752538239622,-1000.0,0.00023878,2]
[372142404,1752538239631,-1000.0,0.00023878,2]
[372142405,1752538239640,-1000.0,0.00023878,2]
[372142406,1752538239650,-416.03518578,0.00023878,2]
[372142407,1752538239659,-1000.0,0.00023878,2]
[372142408,1752538239669,-500.0,0.00023878,2]
[372142409,1752538239678,-1000.0,0.00023878,2]
[372142410,1752538239688,-500.0,0.00023878,2]
[372142411,1752538239697,-1000.0,0.00023878,2]
[372142412,1752538239706,-160.0,0.00023878,2]
[372142413,1752538239716,-500.0,0.00023878,2]
[372142414,1752538239725,-500.0,0.00023878,2]
[372142415,1752538239735,-1000.0,0.00023878,2]
[372142416,1752538239745,-1000.0,0.00023878,2]
[372142417,1752538239754,-500.0,0.00023878,2]
[372142418,1752538239764,-1000.0,0.00023878,2]
[372142419,1752538239774,-500.0,0.00023878,2]
[372142420,1752538239784,-1000.0,0.00023878,2]
[372142421,1752538239793,-1000.0,0.00023878,2]
[372142422,1752538239803,-500.0,0.00023878,2]
[372142423,1752538239812,-151.0,0.00023878,2]
[372142424,1752538239824,-500.0,0.00023878,2]
[372142425,1752538239834,-151.0,0.00023878,2]
[372142426,1752538239844,-500.0,0.00023878,2]
[372142427,1752538239853,-300.0,0.00023878,2]
[372142428,1752538239863,-151.0,0.00023878,2]
[372142429,1752538239875,-300.0,0.00023878,2]
[372142430,1752538239886,-151.0,0.00023878,2]
[372142431,1752538239896,-151.0,0.00023878,2]
[372142432,1752538239907,-300.0,0.00023878,2]
[372142433,1752538239917,-151.0,0.00023878,2]
[372142434,1752538239927,-151.0,0.00023878,2]
[372142435,1752538239937,-300.0,0.00023878,2]
[372142436,1752538239948,-151.0,0.00023878,2]
[372142437,1752538239957,-300.0,0.00023878,2]
[372142438,1752538239967,-151.0,0.00023878,2]
[372142439,1752538239977,-151.0,0.00023878,2]
[372142440,1752538239987,-300.0,0.00023878,2]
[372142441,1752538239997,-151.0,0.00023878,2]
[372142442,1752538240008,-300.0,0.00023878,2]
[372142443,1752538240017,-270.84699328,0.00023878,2]
[372142444,1752538240027,-151.0,0.00023878,2]
[372142445,1752538240036,-300.0,0.00023878,2]
[372142446,1752538240046,-151.0,0.00023878,2]
[372142447,1752538240056,-300.0,0.00023878,2]
[372142448,1752538240065,-151.0,0.00023878,2]
[372142449,1752538240075,-300.0,0.00023878,2]
[372142450,1752538240084,-300.0,0.00023878,2]
[372142451,1752538240094,-300.0,0.00023878,2]
[372142452,1752538240104,-300.0,0.00023878,2]
[372142453,1752538240113,-300.0,0.00023878,2]
[372142454,1752538240124,-151.0,0.00023878,2]
[372142455,1752538240134,-228.37451407,0.00023878,2]
[372142456,1752538240143,-151.0,0.00023878,2]
[372142457,1752538240154,-151.0,0.00023878,2]
[372142458,1752538240164,-151.0,0.00023878,2]
[372142459,1752538240174,-151.0,0.00023878,2]
[372142460,1752538240184,-151.0,0.00023878,2]
[372142461,1752538240194,-151.0,0.00023878,2]
[372142462,1752538240205,-151.0,0.00023878,2]
[372142463,1752538240214,-151.0,0.00023878,2]
[372142464,1752538240224,-151.0,0.00023878,2]
[372142465,1752538240233,-151.0,0.00023878,2]
[372142466,1752538240243,-156.57224395,0.00023878,2]
[372142467,1752538240253,-1711.60013922,0.00023883,2]
[372142468,1752538240263,-34323.312,0.00023892,2]
[372142469,1752538240275,-1500.0,0.00023892,2]
[372142470,1752538240286,-273.7577,0.00023892,2]
[372142471,1752538240297,-1000.0,0.00023892,2]
[372142472,1752538240308,-563.9214,0.00023892,2]
[372142473,1752538240317,-1000.0,0.00023893,2]
[372142474,1752538240328,-157.7624803,0.00023893,2]
[372142475,1752538240338,-1288.53758745,0.00023897,2]
[372142476,1752538240347,-500.0,0.000239,8]
[372142477,1752538240356,-1100.0,0.000239,8]
[372142478,1752538240365,-1100.0,0.000239,8]
[372142479,1752538240375,-1711.60013922,0.00023904,2]
[372142480,1752538240385,-1711.60013922,0.00023925,2]
[372142481,1752538240394,-254.98280446,0.00023928,2]
[372142482,1752538240404,-500.0,0.00023928,2]
[372142483,1752538240414,-182.30334423,0.00023928,2]
[372142484,1752538240423,-503.87022521,0.00023928,2]
[372142485,1752538240433,-2927.35,0.00023929,2]
[372142486,1752538240444,-9589.47,0.00023929,2]
[372142487,1752538240453,-1040.14,0.00023929,2]
[372142488,1752538240463,-460.0,0.00023929,2]
[372142489,1752538240475,-460.0,0.00023929,2]
[372142490,1752538240485,-5558.67,0.00023929,2]
[372142491,1752538240494,-460.0,0.00023929,2]
[372142492,1752538240504,-2014.54,0.00023929,2]
[372142493,1752538240514,-460.0,0.00023929,2]
[372142494,1752538240525,-460.0,0.00023929,2]
[372142495,1752538240534,-460.0,0.00023929,2]
[372142496,1752538240544,-30973.18,0.00023929,2]
[372142497,1752538240553,-460.0,0.00023929,2]
[372142498,1752538240563,-2775.17,0.00023929,2]
[372142499,1752538240573,-6254.32,0.00023929,2]
[372142500,1752538240583,-1090.83,0.00023929,2]
[372142501,1752538240593,-2938.04,0.00023929,2]
[372142502,1752538240603,-653.48,0.00023929,2]
[372142503,1752538240612,-463.71,0.00023929,2]
[372142504,1752538240622,-460.0,0.00023929,2]
[372142505,1752538240631,-641.84,0.00023929,2]
[372142506,1752538240641,-6003.86,0.00023929,2]
[372142507,1752538240971,-6009.43,0.00023929,2]
[372142508,1752538240982,-1017.46,0.00023929,2]
[372142509,1752538240993,-1483.94,0.00023929,2]
[372142510,1752538241003,-6733.91,0.00023929,2]
[372142511,1752538241014,-2022.33,0.00023929,2]
[372142512,1752538241024,-1955.56,0.00023929,2]
[372142513,1752538241034,-500.0,0.00023929,2]
[372142514,1752538241044,-500.0,0.00023929,2]
[372142515,1752538241054,-706.62,0.00023929,2]
[372142516,1752538241063,-500.0,0.00023929,2]
[372142517,1752538241073,-500.0,0.00023929,2]
[372142518,1752538241082,-500.0,0.00023929,2]
[372142519,1752538241092,-500.0,0.00023929,2]
[372142520,1752538241102,-194.73,0.00023929,2]
[372142521,1752538241112,-1721716.24808328,0.00023929,2]
[372142522,1752538241121,-460.0,0.0002393,2]
[372142523,1752538241131,-832.47,0.0002393,2]
[372142524,1752538241140,-460.0,0.0002393,2]
[372142525,1752538241150,-1004.7426,0.0002393,2]
[372142526,1752538241160,-790.91,0.0002393,2]
[372142527,1752538241169,-378.36163367,0.0002393,2]
[372142528,1752538241179,-460.0,0.0002393,2]
[372142529,1752538241189,-1329.27,0.0002393,2]
[372142530,1752538241199,-460.0,0.0002393,2]
[372142531,1752538241208,-960.12,0.0002393,2]
[372142532,1752538241218,-460.0,0.0002393,2]
[372142533,1752538241228,-595.36,0.0002393,2]
[372142534,1752538241237,-460.0,0.0002393,2]
[372142535,1752538241247,-260611.46923392,0.0002393,2]
[372142536,1752538241256,-1711.60013922,0.00023946,2]
[372142537,1752538241266,-1711.60013922,0.00023967,2]
[372142538,1752538241275,-3389.9,0.00023969,2]
[372142539,1752538241284,-501.10319009,0.00023973,2]
[372142540,1752538241295,-614.68441331,0.00023973,2]
[372142541,1752538241304,-500.0,0.00023973,2]
[372142542,1752538241314,-500.0,0.00023973,2]
[372142543,1752538241323,-341.78935637,0.00023973,2]
[372142544,1752538241332,-103699.0,0.00023973,2]
[372142545,1752538241341,-14346.0,0.00023973,2]
[372142546,1752538241350,-500.0,0.00023973,2]
[372142547,1752538241359,-500.0,0.00023973,2]
[372142548,1752538241368,-500.0,0.00023973,2]
[372142549,1752538241377,-500.0,0.00023973,2]
[372142550,1752538241386,-500.0,0.00023973,2]
[372142551,1752538241394,-338.9014966,0.00023973,2]
[372142552,1752538241403,-542.41357043,0.00023973,2]
[372142553,1752538241412,-501.45092959,0.00023973,2]
[372142554,1752538241421,-500.0,0.00023973,2]
[372142555,1752538241431,-1288.53758743,0.0002398,2]
[372142556,1752538241440,-213.28793416,0.00023981,2]
[372142557,1752538241450,-1711.60013922,0.00023988,2]
[372142558,1752538241459,-69557.0,0.0002399,2]
[372142559,1752538241470,-460.0,0.00023991,2]
[372142560,1752538241481,-460.0,0.00023991,2]
[372142561,1752538241491,-460.0,0.00023991,2]
[372142562,1752538241502,-460.0,0.00023991,2]
[372142563,1752538241511,-460.0,0.00023991,2]
[372142564,1752538241520,-460.0,0.00023991,2]
[372142565,1752538241530,-460.0,0.00023991,2]
[372142566,1752538241539,-460.0,0.00023991,2]
[372142567,1752538241548,-460.0,0.00023991,2]
[372142568,1752538241558,-885.96,0.00023991,2]
[372142569,1752538241569,-885.96,0.00023991,2]
[372142570,1752538241580,-460.0,0.00023991,2]
[372142571,1752538241589,-460.0,0.00023991,2]
[372142572,1752538241599,-460.0,0.00023991,2]
[372142573,1752538241608,-460.0,0.00023991,2]
[372142574,1752538241617,-1149.94,0.00023991,2]
[372142575,1752538241627,-7046.08,0.00023991,2]
[372142576,1752538241636,-5224.16,0.00023991,2]
[372142577,1752538241646,-825.3,0.00023991,2]
[372142578,1752538241655,-1159.33,0.00023991,2]
[372142579,1752538241664,-697.08,0.00023991,2]
[372142580,1752538241673,-651.04,0.00023991,2]
[372142581,1752538241683,-2936.77,0.00023991,2]
[372142582,1752538241692,-7529.75,0.00023991,2]
[372142583,1752538241703,-11681.3,0.00023991,2]
[372142584,1752538241712,-4192.86758,0.00023991,2]
[372142585,1752538241722,-157.955692,0.00023991,2]
[372142586,1752538241731,-157.664149,0.00023991,2]
[372142587,1752538241740,-4571.005474,0.00023991,2]
[372142588,1752538241750,-2257.27,0.00023991,2]
[372142589,1752538241759,-4790.262881,0.00023991,2]
[372142590,1752538241769,-21737.48,0.00023991,2]
[372142591,1752538241778,-460.0,0.00023991,2]
[372142592,1752538241787,-150.848518,0.00023991,2]
[372142593,1752538241797,-6291.7,0.00023991,2]
[372142594,1752538241807,-1880.212504,0.00023991,2]
[372142595,1752538241815,-7068.79,0.00023991,2]
[372142596,1752538241827,-5175.74,0.00023991,2]
[372142597,1752538241835,-2073.01,0.00023991,2]
[372142598,1752538241844,-8231.39,0.00023991,2]
[372142599,1752538241854,-4343.88,0.00023991,2]
[372142600,1752538241864,-7374.44,0.00023991,2]
[372142601,1752538241873,-825.29370629,0.00023991,2]
[372142602,1752538241883,-7932.18,0.00023991,2]
[372142603,1752538241892,-3960.65,0.00023991,2]
[372142604,1752538241903,-1852.94,0.00023991,2]
[372142605,1752538241913,-7366.88,0.00023991,2]
[372142606,1752538241923,-1629.9,0.00023991,2]
[372142607,1752538241933,-2852.59,0.00023991,2]
[372142608,1752538241942,-160.798623,0.00023991,2]
[372142609,1752538241953,-7858.89,0.00023991,2]
[372142610,1752538241962,-1849.11,0.00023991,2]
[372142611,1752538241972,-937.49,0.00023991,2]
[372142612,1752538241981,-6827.16,0.00023991,2]
[372142613,1752538241990,-4708.9,0.00023991,2]
[372142614,1752538242000,-460.0,0.00023991,2]
[372142615,1752538242009,-11633.85,0.00023991,2]
[372142616,1752538242018,-3592.9,0.00023991,2]
[372142617,1752538242027,-150.106695,0.00023991,2]
[372142618,1752538242037,-460.0,0.00023991,2]
[372142619,1752538242046,-460.0,0.00023992,2]
[372142620,1752538242056,-460.0,0.00023992,2]
[372142621,1752538242065,-460.0,0.00023992,2]
[372142622,1752538242075,-460.0,0.00023992,2]
[372142623,1752538242084,-1004.16,0.00023992,2]
[372142624,1752538242093,-462.52,0.00023992,2]
[372142625,1752538242103,-1316.64,0.00023992,2]
[372142626,1752538242113,-713.96,0.00023992,2]
[372142627,1752538242123,-460.0,0.00023992,2]
[372142628,1752538242132,-460.0,0.00023992,2]
[372142629,1752538242141,-354.46479649,0.00023992,2]
[372142630,1752538242151,-476.16,0.00023992,2]
[372142631,1752538242160,-804.02,0.00023992,2]
[372142632,1752538242169,-460.0,0.00023992,2]
[372142633,1752538242179,-460.0,0.00023992,2]
[372142634,1752538242188,-460.0,0.00023992,2]
[372142635,1752538242198,-2170.89,0.00023992,2]
[372142636,1752538242207,-460.0,0.00023992,2]
[372142637,1752538242216,-460.0,0.00023992,2]
[372142638,1752538242226,-842.35,0.00023992,2]
[372142639,1752538242235,-470.31,0.00023992,2]
[372142640,1752538242244,-887.86,0.00023992,2]
[372142641,1752538242253,-460.0,0.00023992,2]
[372142642,1752538242263,-460.0,0.00023992,2]
[372142643,1752538242272,-1209.45,0.00023992,2]
[372142644,1752538242282,-948.59,0.00023992,2]
[372142645,1752538242291,-612.64,0.00023992,2]
[372142646,1752538242300,-460.0,0.00023992,2]
[372142647,1752538242310,-460.0,0.00023992,2]
[372142648,1752538242319,-460.0,0.00023992,2]
[372142649,1752538242329,-500.0,0.00023992,2]
[372142650,1752538242338,-500.0,0.00023992,2]
[372142651,1752538242347,-1023.03,0.00023992,2]
[372142652,1752538242357,-460.0,0.00023992,2]
[372142653,1752538242366,-546.78,0.00023992,2]
[372142654,1752538242375,-460.0,0.00023992,2]
[372142655,1752538242385,-530.58,0.00023992,2]
[372142656,1752538242394,-663.03,0.00023992,2]
[372142657,1752538242403,-460.0,0.00023992,2]
[372142658,1752538242412,-460.0,0.00023992,2]
[372142659,1752538242422,-2295.01,0.00023992,2]
[372142660,1752538242431,-460.0,0.00023992,2]
[372142661,1752538242441,-460.0,0.00023992,2]
[372142662,1752538242450,-494.02430119,0.00023992,2]
[372142663,1752538242459,-460.0,0.00023992,2]
[372142664,1752538242469,-744.92,0.00023992,2]
[372142665,1752538242478,-460.0,0.00023992,2]
[372142666,1752538242488,-2537.69,0.00023992,2]
[372142667,1752538242497,-460.0,0.00023992,2]
[372142668,1752538242507,-460.0,0.00023992,2]
[372142669,1752538242517,-345.4623966,0.00023992,2]
[372142670,1752538242527,-460.0,0.00023992,2]
[372142671,1752538242536,-460.0,0.00023992,2]
[372142672,1752538242546,-460.0,0.00023992,2]
[372142673,1752538242555,-460.0,0.00023992,2]
[372142674,1752538242565,-460.0,0.00023992,2]
[372142675,1752538242575,-460.0,0.00023992,2]
[372142676,1752538242584,-460.0,0.00023992,2]
[372142677,1752538242593,-460.0,0.00023992,2]
[372142678,1752538242603,-1155.77,0.00023992,2]
[372142679,1752538242613,-1483.54,0.00023992,2]
[372142680,1752538242626,-460.0,0.00023992,2]
[372142681,1752538242641,-569.93,0.00023992,2]
[372142682,1752538242651,-2321.8,0.00023992,2]
[372142683,1752538242660,-460.0,0.00023992,2]
[372142684,1752538242670,-880.09,0.00023992,2]
[372142685,1752538242679,-460.0,0.00023992,2]
[372142686,1752538242688,-460.0,0.00023992,2]
[372142687,1752538242698,-460.0,0.00023992,2]
[372142688,1752538242707,-563.28,0.00023992,2]
[372142689,1752538242716,-809.48,0.00023992,2]
[372142690,1752538242726,-642.84,0.00023992,2]
[372142691,1752538242735,-460.0,0.00023992,2]
[372142692,1752538242745,-460.0,0.00023992,2]
[372142693,1752538242754,-448.35643717,0.00023992,2]
[372142694,1752538242764,-520.65,0.00023992,2]
[372142695,1752538242773,-460.0,0.00023992,2]
[372142696,1752538242782,-460.0,0.00023992,2]
[372142697,1752538242791,-545.65,0.00023992,2]
[372142698,1752538242801,-460.0,0.00023992,2]
[372142699,1752538242811,-656.65,0.00023992,2]
[372142700,1752538242820,-468.43,0.00023992,2]
[372142701,1752538242834,-1468.72,0.00023992,2]
[372142702,1752538242843,-460.0,0.00023992,2]
[372142703,1752538242853,-460.0,0.00023992,2]
[372142704,1752538242862,-460.0,0.00023992,2]
[372142705,1752538242872,-460.0,0.00023992,2]
[372142706,1752538242882,-1970.11,0.00023992,2]
[372142707,1752538242892,-2671.96,0.00023992,2]
[372142708,1752538242903,-599.57949977,0.00023992,2]
[372142709,1752538242913,-460.0,0.00023992,2]
[372142710,1752538242922,-460.0,0.00023992,2]
[372142711,1752538242932,-460.0,0.00023992,2]
[372142712,1752538242941,-720.44,0.00023992,2]
[372142713,1752538242952,-460.0,0.00023992,2]
[372142714,1752538242961,-460.0,0.00023992,2]
[372142715,1752538242970,-1336.76,0.00023992,2]
[372142716,1752538242979,-2534.04,0.00023992,2]
[372142717,1752538242990,-460.0,0.00023992,2]
[372142718,1752538242999,-460.0,0.00023992,2]
[372142719,1752538243009,-926.86,0.00023992,2]
[372142720,1752538243019,-460.0,0.00023992,2]
[372142721,1752538243028,-460.0,0.00023992,2]
[372142722,1752538243038,-749.26,0.00023992,2]
[372142723,1752538243048,-1171.65,0.00023992,2]
[372142724,1752538243057,-460.0,0.00023992,2]
[372142725,1752538243067,-1348.09,0.00023992,2]
[372142726,1752538243076,-514.09149274,0.00023992,2]
[372142727,1752538243086,-457.49581988,0.00023992,2]
[372142728,1752538243097,-1502.96,0.00023992,2]
[372142729,1752538243106,-460.0,0.00023992,2]
[372142730,1752538243116,-1556.88,0.00023992,2]
[372142731,1752538243126,-1623.16,0.00023992,2]
[372142732,1752538243136,-753.18,0.00023992,2]
[372142733,1752538243145,-1098.85,0.00023992,2]
[372142734,1752538243155,-2855.15,0.00023992,2]
[372142735,1752538243164,-460.0,0.00023992,2]
[372142736,1752538243174,-3130.0,0.00023992,2]
[372142737,1752538243184,-460.0,0.00023992,2]
[372142738,1752538243193,-460.0,0.00023992,2]
[372142739,1752538243203,-460.0,0.00023992,2]
[372142740,1752538243213,-593.12,0.00023992,2]
[372142741,1752538243222,-707.95,0.00023992,2]
[372142742,1752538243232,-460.0,0.00023992,2]
[372142743,1752538243242,-460.0,0.00023992,2]
[372142744,1752538243252,-1636.87,0.00023992,2]
[372142745,1752538243263,-460.0,0.00023992,2]
[372142746,1752538243273,-698.18,0.00023992,2]
[372142747,1752538243284,-1203.08,0.00023992,2]
[372142748,1752538243294,-460.0,0.00023992,2]
[372142749,1752538243304,-1269.17,0.00023992,2]
[372142750,1752538243313,-411.80905337,0.00023992,2]
[372142751,1752538243323,-460.0,0.00023992,2]
[372142752,1752538243332,-460.0,0.00023992,2]
[372142753,1752538243342,-2107.15,0.00023992,2]
[372142754,1752538243351,-500.0,0.00023992,2]
[372142755,1752538243362,-500.0,0.00023992,2]
[372142756,1752538243372,-460.0,0.00023992,2]
[372142757,1752538243382,-460.0,0.00023992,2]
[372142758,1752538243392,-2132.5,0.00023992,2]
[372142759,1752538243402,-460.0,0.00023992,2]
[372142760,1752538243412,-500.0,0.00023992,2]
[372142761,1752538243421,-430.31394666,0.00023992,2]
[372142762,1752538243431,-460.0,0.00023992,2]
[372142763,1752538243440,-302.47550928,0.00023992,2]
[372142764,1752538243450,-804.71,0.00023992,2]
[372142765,1752538243458,-1484.51,0.00023992,2]
[372142766,1752538243468,-460.0,0.00023992,2]
[372142767,1752538243479,-460.0,0.00023992,2]